[Event "*** Titled Tuesday Blitz"]
[Site "Chess.com"]
[Date "2020.04.14"]
[Round "3"]
[White "saikrishnaReturns"]
[Black "gliglu"]
[Result "1-0"]
[WhiteElo "2611"]
[BlackElo "2382"]
[TimeControl "180+1"]
[EndTime "10:28:26 PDT"]
[Termination "saikrishnaReturns won by resignation"]

1. e4 {[%clk 0:03:00.9]} 1... e6 {[%clk 0:02:59.8]} 2. d3 {[%clk 0:03:01]} 2...
c5 {[%clk 0:02:56.8]} 3. Nd2 {[%clk 0:03:01.9]} 3... Nc6 {[%clk 0:02:56.7]} 4.
Ngf3 {[%clk 0:03:02.8]} 4... g6 {[%clk 0:02:56.8]} 5. g3 {[%clk 0:03:03.7]} 5...
Bg7 {[%clk 0:02:56.9]} 6. Bg2 {[%clk 0:03:04.3]} 6... Nge7 {[%clk 0:02:56.9]} 7.
O-O {[%clk 0:03:05]} 7... O-O {[%clk 0:02:56.9]} 8. Re1 {[%clk 0:03:05.7]} 8...
e5 {[%clk 0:02:56.9]} 9. Nc4 {[%clk 0:03:02.9]} 9... d6 {[%clk 0:02:55.2]} 10.
a4 {[%clk 0:03:02]} 10... h6 {[%clk 0:02:53.6]} 11. c3 {[%clk 0:02:58.9]} 11...
Be6 {[%clk 0:02:52.7]} 12. Nfd2 {[%clk 0:02:50.8]} 12... Qd7 {[%clk 0:02:51.1]}
13. f4 {[%clk 0:02:46]} 13... Rad8 {[%clk 0:02:47]} 14. Qf3 {[%clk 0:02:29.2]}
14... Kh7 {[%clk 0:02:25.5]} 15. Ne3 {[%clk 0:02:21.4]} 15... f5 {[%clk
0:02:10.2]} 16. exf5 {[%clk 0:02:15.5]} 16... Nxf5 {[%clk 0:02:09.5]} 17. Nd5
{[%clk 0:02:00.2]} 17... Bxd5 {[%clk 0:01:45.9]} 18. Qxd5 {[%clk 0:02:01.1]}
18... exf4 {[%clk 0:01:45.8]} 19. Ne4 {[%clk 0:01:50.1]} 19... fxg3 {[%clk
0:01:43.8]} 20. hxg3 {[%clk 0:01:51]} 20... Rde8 {[%clk 0:01:41.1]} 21. Bf4
{[%clk 0:01:43.8]} 21... Ne5 {[%clk 0:01:37.3]} 22. Bxe5 {[%clk 0:01:18.4]}
22... Rxe5 {[%clk 0:01:28.9]} 23. Nxc5 {[%clk 0:01:16]} 23... Rxd5 {[%clk
0:01:18.7]} 24. Nxd7 {[%clk 0:01:15.2]} 24... Rxd3 {[%clk 0:01:18.4]} 25. g4
{[%clk 0:01:13.2]} 25... Nh4 {[%clk 0:01:14.9]} 26. Nxf8+ {[%clk 0:01:12.3]}
26... Bxf8 {[%clk 0:01:13.7]} 27. Bxb7 {[%clk 0:01:12.1]} 27... d5 {[%clk
0:01:11.4]} 28. Red1 {[%clk 0:01:02.5]} 28... Bc5+ {[%clk 0:01:09.7]} 29. Kf1
{[%clk 0:01:02.8]} 29... Rf3+ {[%clk 0:01:06.6]} 30. Ke2 {[%clk 0:01:03]} 30...
Re3+ {[%clk 0:01:02.7]} 31. Kd2 {[%clk 0:01:02.6]} 31... Nf3+ {[%clk 0:00:55.4]}
32. Kc2 {[%clk 0:01:02.7]} 32... Re2+ {[%clk 0:00:55.3]} 33. Kb3 {[%clk
0:01:01]} 33... Nd2+ {[%clk 0:00:54.6]} 34. Ka2 {[%clk 0:01:01.2]} 34... Nc4
{[%clk 0:00:42.5]} 35. Rab1 {[%clk 0:01:00.5]} 35... Ba3 {[%clk 0:00:38.3]} 36.
Bxd5 {[%clk 0:00:56.3]} 36... Nxb2 {[%clk 0:00:19]} 37. Kxa3 {[%clk 0:00:55.1]}
37... Nxd1 {[%clk 0:00:18.4]} 38. Rxd1 {[%clk 0:00:54.5]} 38... h5 {[%clk
0:00:18.3]} 39. gxh5 {[%clk 0:00:52.8]} 39... gxh5 {[%clk 0:00:17.7]} 40. Bc4
{[%clk 0:00:50.1]} 40... Re3 {[%clk 0:00:16]} 41. Rd7+ {[%clk 0:00:49.2]} 41...
Kg6 {[%clk 0:00:14.9]} 42. Rxa7 {[%clk 0:00:49.7]} 42... Rxc3+ {[%clk
0:00:14.1]} 43. Kb4 {[%clk 0:00:50.3]} 43... Rc1 {[%clk 0:00:14.1]} 44. a5
{[%clk 0:00:50]} 44... h4 {[%clk 0:00:14]} 45. Ra8 {[%clk 0:00:46.6]} 45... Kf6
{[%clk 0:00:11.7]} 46. Rh8 {[%clk 0:00:45.6]} 46... Ke5 {[%clk 0:00:10.3]} 47.
Rxh4 {[%clk 0:00:43.6]} 47... Kd6 {[%clk 0:00:10.8]} 48. Rh6+ {[%clk 0:00:43.1]}
48... Kc7 {[%clk 0:00:10.7]} 49. Kc5 {[%clk 0:00:43.2]} 49... Kb8 {[%clk
0:00:09.3]} 50. a6 {[%clk 0:00:42.9]} 50... Rb1 {[%clk 0:00:07]} 51. Rh7 {[%clk
0:00:42.4]} 51... Rb2 {[%clk 0:00:05.2]} 52. a7+ {[%clk 0:00:41.2]} 1-0

[Event "*** Titled Tuesday Blitz"]
[Site "Chess.com"]
[Date "2020.04.14"]
[Round "3"]
[White "DraskovicL"]
[Black "kasparicy"]
[Result "1-0"]
[WhiteElo "2557"]
[BlackElo "2321"]
[TimeControl "180+1"]
[EndTime "10:28:27 PDT"]
[Termination "DraskovicL won by resignation"]

1. c4 {[%clk 0:03:00.9]} 1... e5 {[%clk 0:02:58.3]} 2. Nc3 {[%clk 0:03:00.5]}
2... Nc6 {[%clk 0:02:57.4]} 3. d3 {[%clk 0:02:59.8]} 3... f5 {[%clk 0:02:57.6]}
4. g3 {[%clk 0:02:53.3]} 4... Nf6 {[%clk 0:02:56.3]} 5. Bg2 {[%clk 0:02:53.1]}
5... d6 {[%clk 0:02:52.6]} 6. Nf3 {[%clk 0:02:52.8]} 6... Be7 {[%clk 0:02:53]}
7. O-O {[%clk 0:02:52.1]} 7... O-O {[%clk 0:02:53.3]} 8. Rb1 {[%clk 0:02:50.6]}
8... a5 {[%clk 0:02:51.9]} 9. a3 {[%clk 0:02:49.5]} 9... Qe8 {[%clk 0:02:48.8]}
10. b4 {[%clk 0:02:47.6]} 10... axb4 {[%clk 0:02:46.5]} 11. axb4 {[%clk
0:02:48.5]} 11... Bd8 {[%clk 0:02:39.1]} 12. Nd2 {[%clk 0:02:41.7]} 12... Qh5
{[%clk 0:02:32.3]} 13. b5 {[%clk 0:02:40.2]} 13... Ne7 {[%clk 0:02:29]} 14. e3
{[%clk 0:02:39.9]} 14... Qh6 {[%clk 0:02:26.9]} 15. Bb2 {[%clk 0:02:21.5]} 15...
Ng4 {[%clk 0:02:16.7]} 16. h3 {[%clk 0:02:20.3]} 16... Nf6 {[%clk 0:02:16.2]}
17. f4 {[%clk 0:02:19.1]} 17... g5 {[%clk 0:02:05.7]} 18. Ne2 {[%clk 0:01:43.6]}
18... gxf4 {[%clk 0:01:52.6]} 19. exf4 {[%clk 0:01:41.6]} 19... Ng6 {[%clk
0:01:50.6]} 20. Nf3 {[%clk 0:01:33.9]} 20... exf4 {[%clk 0:01:38.1]} 21. Nxf4
{[%clk 0:01:29]} 21... Nxf4 {[%clk 0:01:36.4]} 22. gxf4 {[%clk 0:01:29.9]} 22...
Qxf4 {[%clk 0:01:33.6]} 23. Qd2 {[%clk 0:01:16.1]} 23... Qxd2 {[%clk 0:00:42.3]}
24. Nxd2 {[%clk 0:01:17]} 24... h6 {[%clk 0:00:32.4]} 25. Kh1 {[%clk 0:01:10.5]}
25... Kh7 {[%clk 0:00:31.7]} 26. Bf3 {[%clk 0:01:04.3]} 26... Ra2 {[%clk
0:00:27.6]} 27. Rg1 {[%clk 0:00:45.4]} 27... Rf7 {[%clk 0:00:18.3]} 28. Nb3
{[%clk 0:00:39.3]} 28... c6 {[%clk 0:00:15.8]} 29. Nd4 {[%clk 0:00:37.1]} 29...
cxb5 {[%clk 0:00:15.2]} 30. Nxb5 {[%clk 0:00:36.7]} 30... d5 {[%clk 0:00:15.6]}
31. cxd5 {[%clk 0:00:31.2]} 31... Ra4 {[%clk 0:00:15.2]} 32. Nd6 {[%clk
0:00:30.1]} 32... Rc7 {[%clk 0:00:12.7]} 33. Nxc8 {[%clk 0:00:30]} 33... Rxc8
{[%clk 0:00:13.6]} 34. Be5 {[%clk 0:00:28.6]} 34... Rc2 {[%clk 0:00:13.2]} 35.
Rxb7+ {[%clk 0:00:28]} 35... Kh8 {[%clk 0:00:12.3]} 36. Rb8 {[%clk 0:00:25.1]}
36... Rh4 {[%clk 0:00:07.9]} 37. Rxd8+ {[%clk 0:00:23.8]} 37... Kh7 {[%clk
0:00:08.4]} 38. Rh8+ {[%clk 0:00:18.5]} 38... Kxh8 {[%clk 0:00:06.1]} 39. Bxf6+
{[%clk 0:00:18.9]} 39... Kh7 {[%clk 0:00:07]} 40. Bxh4 {[%clk 0:00:18.8]} 40...
Rc3 {[%clk 0:00:05.7]} 41. Bf6 {[%clk 0:00:18.4]} 1-0

[Event "*** Titled Tuesday Blitz"]
[Site "Chess.com"]
[Date "2020.04.14"]
[Round "3"]
[White "anon219"]
[Black "Mikhail_Biryukov"]
[Result "0-1"]
[WhiteElo "2817"]
[BlackElo "2602"]
[TimeControl "180+1"]
[EndTime "10:28:28 PDT"]
[Termination "Mikhail_Biryukov won by resignation"]

1. e4 {[%clk 0:03:00.9]} 1... c5 {[%clk 0:02:59.6]} 2. Nf3 {[%clk 0:03:01]} 2...
Nc6 {[%clk 0:02:59.7]} 3. Bb5 {[%clk 0:03:01.3]} 3... g6 {[%clk 0:02:58.9]} 4.
O-O {[%clk 0:03:01.2]} 4... Bg7 {[%clk 0:02:58.9]} 5. Nc3 {[%clk 0:03:01.9]}
5... Nf6 {[%clk 0:02:55.3]} 6. e5 {[%clk 0:03:01.4]} 6... Ng4 {[%clk 0:02:53.5]}
7. Bxc6 {[%clk 0:03:01.8]} 7... dxc6 {[%clk 0:02:53.2]} 8. Re1 {[%clk
0:03:02.4]} 8... O-O {[%clk 0:02:52]} 9. d3 {[%clk 0:03:02]} 9... Nh6 {[%clk
0:02:51]} 10. h3 {[%clk 0:03:02.1]} 10... Nf5 {[%clk 0:02:51]} 11. a4 {[%clk
0:03:02.5]} 11... a5 {[%clk 0:02:48]} 12. Bf4 {[%clk 0:02:54.3]} 12... Be6
{[%clk 0:02:45.8]} 13. Ne4 {[%clk 0:02:47.5]} 13... b6 {[%clk 0:02:44.9]} 14. c3
{[%clk 0:02:47.7]} 14... Qd7 {[%clk 0:02:42.8]} 15. Qd2 {[%clk 0:02:47.2]} 15...
f6 {[%clk 0:02:15.9]} 16. exf6 {[%clk 0:01:34.4]} 16... exf6 {[%clk 0:02:12.9]}
17. Rad1 {[%clk 0:01:33]} 17... Bd5 {[%clk 0:02:07.3]} 18. Qc2 {[%clk
0:01:27.5]} 18... Rfe8 {[%clk 0:02:00.8]} 19. Bh2 {[%clk 0:01:24.2]} 19... Re6
{[%clk 0:01:48.9]} 20. Nfd2 {[%clk 0:00:52.6]} 20... Rd8 {[%clk 0:01:37.9]} 21.
Re2 {[%clk 0:00:45.3]} 21... Nh4 {[%clk 0:01:19.5]} 22. Rde1 {[%clk 0:00:42.1]}
22... f5 {[%clk 0:01:15.6]} 23. Bg3 {[%clk 0:00:35.7]} 23... fxe4 {[%clk
0:01:01.1]} 24. dxe4 {[%clk 0:00:32.1]} 24... Nf5 {[%clk 0:00:48.3]} 25. exf5
{[%clk 0:00:28.8]} 25... Rxe2 {[%clk 0:00:48.2]} 26. Rxe2 {[%clk 0:00:29.7]}
26... Qxf5 {[%clk 0:00:48.3]} 27. Qxf5 {[%clk 0:00:28.8]} 27... gxf5 {[%clk
0:00:49.2]} 28. Bc7 {[%clk 0:00:27.2]} 28... Rd7 {[%clk 0:00:44.6]} 29. Bxb6
{[%clk 0:00:22.5]} 29... Rb7 {[%clk 0:00:44.5]} 30. Bxc5 {[%clk 0:00:18.2]}
30... Rxb2 {[%clk 0:00:43.8]} 31. Re8+ {[%clk 0:00:16.9]} 31... Kf7 {[%clk
0:00:43]} 32. Re7+ {[%clk 0:00:17.5]} 32... Kf6 {[%clk 0:00:43.2]} 33. Nf3
{[%clk 0:00:16.8]} 33... Bf8 {[%clk 0:00:39.4]} 34. Rxh7 {[%clk 0:00:04.9]}
34... Bxc5 {[%clk 0:00:38.5]} 35. Nd4 {[%clk 0:00:05.8]} 35... Bxd4 {[%clk
0:00:36.9]} 36. cxd4 {[%clk 0:00:06.7]} 36... Rb4 {[%clk 0:00:37]} 37. Kh2
{[%clk 0:00:06.3]} 37... Rxd4 {[%clk 0:00:36.1]} 38. Ra7 {[%clk 0:00:07.2]}
38... Rxa4 {[%clk 0:00:35.6]} 39. Kg3 {[%clk 0:00:07.8]} 39... Ra3+ {[%clk
0:00:35.5]} 40. f3 {[%clk 0:00:07.7]} 40... Ra2 {[%clk 0:00:35.9]} 41. h4 {[%clk
0:00:07.6]} 41... a4 {[%clk 0:00:35]} 42. h5 {[%clk 0:00:08]} 42... Kg5 {[%clk
0:00:34.8]} 43. Rg7+ {[%clk 0:00:06.6]} 43... Kxh5 {[%clk 0:00:34.2]} 44. Kf4
{[%clk 0:00:07.2]} 44... Kh6 {[%clk 0:00:30.7]} 0-1

[Event "*** Titled Tuesday Blitz"]
[Site "Chess.com"]
[Date "2020.04.14"]
[Round "3"]
[White "Buffy7"]
[Black "ChessFunMaker"]
[Result "1-0"]
[WhiteElo "2645"]
[BlackElo "2401"]
[TimeControl "180+1"]
[EndTime "10:28:28 PDT"]
[Termination "Buffy7 won by checkmate"]

1. d4 {[%clk 0:03:00.7]} 1... Nf6 {[%clk 0:02:59.8]} 2. c4 {[%clk 0:03:00.5]}
2... d6 {[%clk 0:03:00]} 3. Nc3 {[%clk 0:03:00.2]} 3... e5 {[%clk 0:03:00.6]} 4.
Nf3 {[%clk 0:02:57.6]} 4... Nbd7 {[%clk 0:03:00.8]} 5. e4 {[%clk 0:02:56.8]}
5... g6 {[%clk 0:03:00.3]} 6. Be2 {[%clk 0:02:55.9]} 6... Bg7 {[%clk 0:03:00.4]}
7. O-O {[%clk 0:02:56.4]} 7... O-O {[%clk 0:03:00.4]} 8. Re1 {[%clk 0:02:56.5]}
8... Re8 {[%clk 0:02:57]} 9. dxe5 {[%clk 0:02:41.8]} 9... dxe5 {[%clk
0:02:53.6]} 10. Be3 {[%clk 0:02:37.8]} 10... c6 {[%clk 0:02:51.7]} 11. Qc2
{[%clk 0:02:34.2]} 11... Qe7 {[%clk 0:02:40.3]} 12. a3 {[%clk 0:02:28.3]} 12...
a5 {[%clk 0:02:34.9]} 13. Na4 {[%clk 0:02:14.4]} 13... Ng4 {[%clk 0:02:21.6]}
14. Bg5 {[%clk 0:02:12.8]} 14... f6 {[%clk 0:02:21.1]} 15. Bd2 {[%clk
0:02:11.2]} 15... Nc5 {[%clk 0:01:35.9]} 16. h3 {[%clk 0:01:57.9]} 16... Nxa4
{[%clk 0:01:29.9]} 17. Qxa4 {[%clk 0:01:58.8]} 17... Nh6 {[%clk 0:01:25.9]} 18.
b4 {[%clk 0:01:58.7]} 18... Nf7 {[%clk 0:01:06.8]} 19. bxa5 {[%clk 0:01:48.6]}
19... f5 {[%clk 0:01:06.7]} 20. Bd3 {[%clk 0:01:38]} 20... Rd8 {[%clk
0:00:49.5]} 21. Bc2 {[%clk 0:01:31.3]} 21... f4 {[%clk 0:00:49.7]} 22. c5 {[%clk
0:01:18.8]} 22... Qxc5 {[%clk 0:00:42.6]} 23. Bb4 {[%clk 0:01:17.2]} 23... Qa7
{[%clk 0:00:30.6]} 24. Bb3 {[%clk 0:01:17.2]} 24... c5 {[%clk 0:00:28.2]} 25.
Ng5 {[%clk 0:01:09.7]} 25... cxb4 {[%clk 0:00:12.7]} 26. Nxf7 {[%clk 0:01:09.5]}
26... Rd2 {[%clk 0:00:13.3]} 27. Qe8+ {[%clk 0:00:47.9]} 27... Bf8 {[%clk
0:00:13]} 28. Nxe5+ {[%clk 0:00:36.8]} 28... Kg7 {[%clk 0:00:13]} 29. Qf7+
{[%clk 0:00:35.1]} 29... Kh6 {[%clk 0:00:13.2]} 30. Qxf8+ {[%clk 0:00:34.5]}
30... Kh5 {[%clk 0:00:12.3]} 31. Qxf4 {[%clk 0:00:25.9]} 31... bxa3 {[%clk
0:00:07.9]} 32. Qxd2 {[%clk 0:00:20.5]} 32... Qxa5 {[%clk 0:00:05.3]} 33. Qf4
{[%clk 0:00:19.7]} 33... b5 {[%clk 0:00:02.8]} 34. g4+ {[%clk 0:00:19.7]} 34...
Kh4 {[%clk 0:00:02.8]} 35. Qh6# {[%clk 0:00:19]} 1-0

[Event "*** Titled Tuesday Blitz"]
[Site "Chess.com"]
[Date "2020.04.14"]
[Round "3"]
[White "Torrentec"]
[Black "kungmongmanh"]
[Result "0-1"]
[WhiteElo "2317"]
[BlackElo "2554"]
[TimeControl "180+1"]
[EndTime "10:28:29 PDT"]
[Termination "kungmongmanh won on time"]

1. e4 {[%clk 0:02:59.2]} 1... e6 {[%clk 0:02:59.3]} 2. d4 {[%clk 0:02:57.3]}
2... d5 {[%clk 0:02:59.1]} 3. Nc3 {[%clk 0:02:58.2]} 3... Nf6 {[%clk 0:02:58.8]}
4. e5 {[%clk 0:02:58.1]} 4... Nfd7 {[%clk 0:02:57.9]} 5. f4 {[%clk 0:02:58.2]}
5... c5 {[%clk 0:02:57.8]} 6. Nf3 {[%clk 0:02:57.7]} 6... Nc6 {[%clk 0:02:57.8]}
7. Be3 {[%clk 0:02:56.8]} 7... Be7 {[%clk 0:02:58]} 8. Be2 {[%clk 0:02:50.6]}
8... c4 {[%clk 0:02:57.7]} 9. a3 {[%clk 0:02:49]} 9... b5 {[%clk 0:02:54.5]} 10.
Qd2 {[%clk 0:02:47.9]} 10... a6 {[%clk 0:02:54]} 11. O-O {[%clk 0:02:43.6]}
11... Nb6 {[%clk 0:02:53.7]} 12. Rae1 {[%clk 0:02:14.3]} 12... Rb8 {[%clk
0:02:49.3]} 13. Ng5 {[%clk 0:02:12.3]} 13... Bxg5 {[%clk 0:02:42.8]} 14. fxg5
{[%clk 0:02:12]} 14... O-O {[%clk 0:02:43.3]} 15. Nd1 {[%clk 0:02:02.9]} 15...
a5 {[%clk 0:02:29.4]} 16. h4 {[%clk 0:01:56.2]} 16... b4 {[%clk 0:02:20.9]} 17.
axb4 {[%clk 0:01:55.6]} 17... axb4 {[%clk 0:02:20.6]} 18. h5 {[%clk 0:01:53]}
18... Ba6 {[%clk 0:02:14.1]} 19. h6 {[%clk 0:01:40.7]} 19... g6 {[%clk
0:02:09.3]} 20. Nf2 {[%clk 0:01:26.6]} 20... c3 {[%clk 0:01:55.9]} 21. bxc3
{[%clk 0:01:25.2]} 21... Bxe2 {[%clk 0:01:56.3]} 22. Rxe2 {[%clk 0:01:11]} 22...
Nc4 {[%clk 0:01:55.8]} 23. Qd3 {[%clk 0:01:07.3]} 23... bxc3 {[%clk 0:01:31.2]}
24. Qxc3 {[%clk 0:01:01.1]} 24... Qa5 {[%clk 0:01:30.9]} 25. Qxa5 {[%clk
0:00:50.5]} 25... N6xa5 {[%clk 0:01:29.4]} 26. Ng4 {[%clk 0:00:46.5]} 26... Rb7
{[%clk 0:01:28.3]} 27. Ref2 {[%clk 0:00:23.5]} 27... Nc6 {[%clk 0:01:19.4]} 28.
c3 {[%clk 0:00:17.6]} 28... Ne7 {[%clk 0:00:49]} 29. Bc1 {[%clk 0:00:14]} 29...
Nf5 {[%clk 0:00:44]} 30. Nf6+ {[%clk 0:00:11.7]} 30... Kh8 {[%clk 0:00:44.2]}
31. g4 {[%clk 0:00:11.2]} 31... Nfe3 {[%clk 0:00:44.1]} 32. Bxe3 {[%clk
0:00:10.8]} 32... Nxe3 {[%clk 0:00:45]} 33. Rc1 {[%clk 0:00:08.5]} 33... Rc7
{[%clk 0:00:41.5]} 34. Rf3 {[%clk 0:00:08.2]} 34... Nc4 {[%clk 0:00:41.1]} 35.
Rf2 {[%clk 0:00:07.7]} 35... Rb8 {[%clk 0:00:35.1]} 36. Rf3 {[%clk 0:00:05.9]}
36... Rcb7 {[%clk 0:00:32.7]} 37. Rcf1 {[%clk 0:00:03.3]} 37... Nd2 {[%clk
0:00:29.7]} 38. R1f2 {[%clk 0:00:03]} 38... Nxf3+ {[%clk 0:00:29.8]} 39. Rxf3
{[%clk 0:00:03]} 39... Rb1+ {[%clk 0:00:28.8]} 40. Kg2 {[%clk 0:00:03.2]} 40...
R8b2+ {[%clk 0:00:28.8]} 41. Kh3 {[%clk 0:00:02.8]} 41... Rh1+ {[%clk
0:00:27.9]} 0-1

[Event "*** Titled Tuesday Blitz"]
[Site "Chess.com"]
[Date "2020.04.14"]
[Round "3"]
[White "francyIM"]
[Black "przemekpiotrowski"]
[Result "1-0"]
[WhiteElo "2625"]
[BlackElo "2396"]
[TimeControl "180+1"]
[EndTime "10:28:30 PDT"]
[Termination "francyIM won by resignation"]

1. d4 {[%clk 0:03:00.9]} 1... c5 {[%clk 0:02:32.1]} 2. d5 {[%clk 0:02:57.6]}
2... e5 {[%clk 0:02:31.7]} 3. e4 {[%clk 0:02:56.6]} 3... d6 {[%clk 0:02:32.1]}
4. Bb5+ {[%clk 0:02:56.1]} 4... Nd7 {[%clk 0:02:31.4]} 5. a4 {[%clk 0:02:55.1]}
5... Be7 {[%clk 0:02:31.5]} 6. Nc3 {[%clk 0:02:54.9]} 6... Bg5 {[%clk
0:02:30.6]} 7. Nf3 {[%clk 0:02:53.7]} 7... Bxc1 {[%clk 0:02:30.1]} 8. Qxc1
{[%clk 0:02:54.6]} 8... Ne7 {[%clk 0:02:30.2]} 9. a5 {[%clk 0:02:51.4]} 9... a6
{[%clk 0:02:24.9]} 10. Bd3 {[%clk 0:02:51.2]} 10... Ng6 {[%clk 0:02:24.9]} 11.
Ne2 {[%clk 0:02:48.7]} 11... O-O {[%clk 0:02:24.4]} 12. h4 {[%clk 0:02:48.1]}
12... Qf6 {[%clk 0:02:11.8]} 13. Qg5 {[%clk 0:02:44.1]} 13... Nf4 {[%clk
0:01:59.2]} 14. Qxf6 {[%clk 0:02:41.1]} 14... Nxf6 {[%clk 0:01:56.8]} 15. Nxf4
{[%clk 0:02:37.4]} 15... exf4 {[%clk 0:01:56]} 16. Nd2 {[%clk 0:02:35.6]} 16...
Re8 {[%clk 0:01:47.2]} 17. Kd1 {[%clk 0:02:31]} 17... Ng4 {[%clk 0:01:41.3]} 18.
Rf1 {[%clk 0:02:27.2]} 18... Ne5 {[%clk 0:01:40.7]} 19. f3 {[%clk 0:02:25.2]}
19... Bd7 {[%clk 0:01:38.3]} 20. Rh1 {[%clk 0:02:24]} 20... h5 {[%clk
0:01:37.1]} 21. b3 {[%clk 0:02:22.6]} 21... Bb5 {[%clk 0:01:34.2]} 22. Be2
{[%clk 0:02:20.9]} 22... Rec8 {[%clk 0:01:16.5]} 23. Nb1 {[%clk 0:02:12]} 23...
Bxe2+ {[%clk 0:01:05.3]} 24. Kxe2 {[%clk 0:02:12.9]} 24... c4 {[%clk 0:01:05.9]}
25. b4 {[%clk 0:02:11.9]} 25... Rc7 {[%clk 0:00:55.2]} 26. Nc3 {[%clk
0:02:08.7]} 26... Kh7 {[%clk 0:00:51.9]} 27. Kf2 {[%clk 0:02:03]} 27... f6
{[%clk 0:00:50.1]} 28. Rhb1 {[%clk 0:02:02.5]} 28... g5 {[%clk 0:00:48.7]} 29.
b5 {[%clk 0:01:59.1]} 29... Kg6 {[%clk 0:00:46.1]} 30. bxa6 {[%clk 0:01:56.5]}
30... Rxa6 {[%clk 0:00:46.6]} 31. Rb6 {[%clk 0:01:55.6]} 31... Nd7 {[%clk
0:00:40.2]} 32. Rxa6 {[%clk 0:01:36.1]} 32... bxa6 {[%clk 0:00:41.1]} 33. Rb1
{[%clk 0:01:36.3]} 33... Kf7 {[%clk 0:00:37.4]} 34. Na4 {[%clk 0:01:30.1]} 34...
Ke7 {[%clk 0:00:36]} 35. Rh1 {[%clk 0:01:29.1]} 35... g4 {[%clk 0:00:34.5]} 36.
Rb1 {[%clk 0:01:17.3]} 36... g3+ {[%clk 0:00:26.9]} 37. Ke2 {[%clk 0:01:16.6]}
37... f5 {[%clk 0:00:26.5]} 38. exf5 {[%clk 0:01:14.6]} 38... Kf6 {[%clk
0:00:26.6]} 39. Kd2 {[%clk 0:01:13.1]} 39... Kxf5 {[%clk 0:00:25.3]} 40. Kc3
{[%clk 0:01:12.6]} 40... Ke5 {[%clk 0:00:25.6]} 41. Re1+ {[%clk 0:01:06.6]}
41... Kxd5 {[%clk 0:00:25.4]} 42. Re4 {[%clk 0:01:06.4]} 42... Ne5 {[%clk
0:00:23.5]} 43. Nb6+ {[%clk 0:01:04.2]} 43... Kc6 {[%clk 0:00:23.2]} 44. Rxf4
{[%clk 0:01:03.4]} 44... Kb5 {[%clk 0:00:23.3]} 45. Rf5 {[%clk 0:01:02.4]} 45...
Kxa5 {[%clk 0:00:23.2]} 46. Nd5 {[%clk 0:00:58.6]} 46... Rh7 {[%clk 0:00:20.1]}
47. f4 {[%clk 0:00:56.2]} 47... Rf7 {[%clk 0:00:17.8]} 48. Nf6 {[%clk
0:00:46.3]} 48... Rxf6 {[%clk 0:00:14.4]} 49. Rxf6 {[%clk 0:00:44.7]} 49... Ng4
{[%clk 0:00:15.3]} 50. Rf5+ {[%clk 0:00:44]} 50... Kb6 {[%clk 0:00:14.9]} 51.
Rxh5 {[%clk 0:00:44]} 51... Ne3 {[%clk 0:00:15.3]} 52. Rg5 {[%clk 0:00:43.3]}
52... Nxg2 {[%clk 0:00:15.6]} 53. h5 {[%clk 0:00:39.7]} 53... Nxf4 {[%clk
0:00:15.1]} 54. h6 {[%clk 0:00:40]} 54... g2 {[%clk 0:00:11.1]} 1-0

[Event "*** Titled Tuesday Blitz"]
[Site "Chess.com"]
[Date "2020.04.14"]
[Round "3"]
[White "Gabrielian_Artur"]
[Black "Fandorine"]
[Result "1-0"]
[WhiteElo "2688"]
[BlackElo "2905"]
[TimeControl "180+1"]
[EndTime "10:28:31 PDT"]
[Termination "Gabrielian_Artur won on time"]

1. e4 {[%clk 0:03:00.9]} 1... c5 {[%clk 0:02:59.2]} 2. Nc3 {[%clk 0:03:00.5]}
2... d6 {[%clk 0:02:55]} 3. d4 {[%clk 0:03:00]} 3... cxd4 {[%clk 0:02:55.1]} 4.
Qxd4 {[%clk 0:03:00.2]} 4... Nc6 {[%clk 0:02:40.4]} 5. Qd2 {[%clk 0:02:56.6]}
5... g6 {[%clk 0:02:40.2]} 6. b3 {[%clk 0:02:54.8]} 6... Bh6 {[%clk 0:02:40]} 7.
f4 {[%clk 0:02:52.9]} 7... f5 {[%clk 0:02:39.3]} 8. Bb2 {[%clk 0:02:46.1]} 8...
Nf6 {[%clk 0:02:37.9]} 9. exf5 {[%clk 0:02:16.7]} 9... Bxf5 {[%clk 0:02:37.3]}
10. Nf3 {[%clk 0:02:16.3]} 10... Qa5 {[%clk 0:02:26.7]} 11. O-O-O {[%clk
0:01:44.2]} 11... O-O-O {[%clk 0:02:06.8]} 12. g3 {[%clk 0:01:29.7]} 12... Rhe8
{[%clk 0:01:34.6]} 13. Bd3 {[%clk 0:01:24.3]} 13... Kb8 {[%clk 0:01:16.5]} 14.
Bxf5 {[%clk 0:01:19.8]} 14... gxf5 {[%clk 0:01:08.9]} 15. Rhe1 {[%clk
0:01:19.1]} 15... e5 {[%clk 0:00:58.3]} 16. Kb1 {[%clk 0:01:13.8]} 16... d5
{[%clk 0:00:44.7]} 17. Nh4 {[%clk 0:00:55.6]} 17... d4 {[%clk 0:00:41.2]} 18.
Na4 {[%clk 0:00:54.6]} 18... Qxd2 {[%clk 0:00:40.1]} 19. Rxd2 {[%clk 0:00:54.3]}
19... exf4 {[%clk 0:00:32.8]} 20. Rdd1 {[%clk 0:00:51.8]} 20... Rxe1 {[%clk
0:00:17]} 21. Rxe1 {[%clk 0:00:51.4]} 21... Bg5 {[%clk 0:00:12.2]} 22. Nxf5
{[%clk 0:00:47.7]} 22... f3 {[%clk 0:00:08]} 23. Nc5 {[%clk 0:00:20.2]} 23... f2
{[%clk 0:00:07.9]} 24. Rf1 {[%clk 0:00:19.8]} 24... Be3 {[%clk 0:00:08.4]} 25.
Bc1 {[%clk 0:00:16.4]} 25... Re8 {[%clk 0:00:08.1]} 26. Nd3 {[%clk 0:00:14.6]}
26... Ng4 {[%clk 0:00:05.3]} 27. h3 {[%clk 0:00:10.1]} 27... Nh2 {[%clk
0:00:05.6]} 28. Rxf2 {[%clk 0:00:10.5]} 28... Bxf2 {[%clk 0:00:06]} 29. Bf4+
{[%clk 0:00:10.8]} 29... Ka8 {[%clk 0:00:05.4]} 30. Nxf2 {[%clk 0:00:11.4]}
30... Nf3 {[%clk 0:00:04.5]} 31. Nd3 {[%clk 0:00:11.1]} 31... Ne1 {[%clk
0:00:03.6]} 32. Nc5 {[%clk 0:00:09.5]} 32... b6 {[%clk 0:00:04]} 33. Na6 {[%clk
0:00:08.7]} 33... Kb7 {[%clk 0:00:03.8]} 34. Nd6+ {[%clk 0:00:08.8]} 1-0